bitfinex/quotes_SOLUSD_20250718
["timestamp","ask_amount","ask_price","bid_price","bid_amount"]
[1752865151047,5.61807594,178.0,177.98,7.14116008]
[1752865152641,5.61807594,178.0,177.94,29.29]
[1752865152642,0.72,177.99,177.94,29.29]
[1752865152820,0.72,177.99,177.96,7.14116008]
[1752865153010,0.72,177.99,177.97,7.14116008]
[1752865153334,5.61807594,178.0,177.97,7.14116008]
[1752865154136,6.33807594,178.0,177.97,7.14116008]
[1752865154342,0.72,177.99,177.94,29.06]
[1752865154700,0.72,177.99,177.95,7.14116008]
[1752865154934,5.61807594,178.0,177.97,7.14116008]
[1752865155111,6.33807594,178.0,177.97,7.14116008]
[1752865155305,5.61807594,178.0,177.97,7.14116008]
[1752865156841,0.72,177.99,177.97,7.14116008]
[1752865157713,5.61807594,178.0,177.97,7.14116008]
[1752865157942,6.33807594,178.0,177.97,7.14116008]
[1752865158239,5.61807594,178.0,177.97,7.14116008]
[1752865158964,6.33807594,178.0,177.97,7.14116008]
[1752865160185,5.61807594,178.0,177.98,7.14116008]
[1752865160355,6.33807594,178.0,177.94,17.01468397]
[1752865160676,6.33807594,178.0,177.97,7.14116008]
[1752865162868,6.33807594,178.0,177.98,7.14116008]
[1752865163061,5.61807594,178.0,177.98,7.14116008]
[1752865166361,0.72,177.99,177.93,43.01468397]
[1752865166665,0.72,177.99,177.97,7.14116008]
[1752865166847,0.72,177.99,177.93,43.01468397]
[1752865167169,0.72,177.99,177.96,7.14116008]
[1752865167665,0.72,177.98,177.93,43.01468397]
[1752865167838,0.72,177.97,177.92,29.06]
[1752865168041,5.61924027,177.96,177.94,7.14116008]
[1752865168368,5.61924027,177.96,177.9,22.40570843]
[1752865168369,7.86116008,177.95,177.84,0.03]
[1752865168576,26.0,177.93,177.84,0.03]
[1752865168861,26.0,177.93,177.86,7.14116008]
[1752865169164,7.86116008,177.92,177.87,7.14116008]
[1752865169350,0.72,177.91,177.88,7.14116008]
[1752865169862,26.72,177.93,177.86,0.23]
[1752865170054,48.70734096,177.96,177.86,0.23]
[1752865170055,7.86116008,177.92,177.87,7.14116008]
[1752865170365,6.34081951,177.91,177.87,7.14116008]
[1752865170565,0.72,177.9,177.84,17.04468397]
[1752865170757,0.72,177.9,177.87,7.14116008]
[1752865170934,0.72,177.9,177.84,17.04468397]
[1752865171137,0.72,177.9,177.86,7.14116008]
[1752865171359,0.72,177.9,177.84,16.81468397]
[1752865171533,0.72,177.9,177.84,0.03]
[1752865171735,6.6023,177.89,177.84,0.03]
[1752865171953,7.14116008,177.85,177.84,0.03]
[1752865172246,12.76387585,177.85,177.84,0.03]
[1752865172442,13.48387585,177.85,177.84,0.03]
[1752865173358,5.62210508,177.87,177.84,0.03]
[1752865173665,57.6684,177.9,177.84,0.26]
[1752865173666,0.72,177.9,177.84,0.26]
[1752865173850,5.62083755,177.91,177.87,7.14116008]
[1752865174049,6.34083755,177.91,177.87,7.14116008]
[1752865174249,6.34083755,177.91,177.84,26.26]
[1752865174250,5.62018771,177.93,177.88,0.23]
[1752865174567,0.72,177.96,177.88,43.01468397]
[1752865174776,5.61892453,177.97,177.89,17.01468397]
[1752865175066,5.61892453,177.97,177.94,7.14116008]
[1752865175457,6.33892453,177.97,177.94,7.14116008]
[1752865175843,0.72,177.97,177.94,7.14116008]
[1752865176171,5.61861003,177.98,177.95,7.14116008]
[1752865176370,6.33861003,177.98,177.94,7.14116008]
[1752865176543,5.61861003,177.98,177.94,7.14116008]
[1752865176750,0.72,177.97,177.94,7.14116008]
[1752865177654,6.33923721,177.97,177.94,7.14116008]
[1752865178648,6.33923721,177.97,177.91,17.01468397]
[1752865178977,6.33923721,177.97,177.95,7.14116008]
[1752865179274,6.33923721,177.97,177.91,17.01468397]
[1752865179480,6.33923721,177.97,177.95,7.14116008]
[1752865179778,6.33923721,177.97,177.94,7.14116008]
[1752865179958,7.86116008,177.96,177.9,30.02]
[1752865180159,0.72,177.95,177.91,7.14116008]
[1752865180359,0.72,177.95,177.92,7.14116008]
[1752865180577,7.64116008,177.96,177.92,7.14116008]
[1752865180780,0.72,177.94,177.92,7.14116008]
[1752865181492,7.86116008,177.96,177.92,7.14116008]
[1752865181702,6.33955605,177.95,177.92,7.14116008]
[1752865181864,5.61860883,177.98,177.94,7.14116008]
[1752865182069,6.33860883,177.98,177.95,7.14116008]
[1752865182568,6.33860883,177.98,177.96,7.14116008]
[1752865182768,6.33860883,177.98,177.9,30.02]
[1752865182769,5.61860883,177.98,177.97,7.14116008]
[1752865182969,0.72,178.02,177.97,7.14116008]
[1752865183193,0.72,178.02,177.98,7.14116008]
[1752865183479,0.72,178.01,177.95,30.17]
[1752865183676,5.61797752,178.0,177.97,7.14116008]
[1752865183895,6.33797752,178.0,177.97,7.14116008]
[1752865184399,0.72,177.99,177.96,7.14116008]
[1752865184773,0.72,177.98,177.95,37.08116008]
[1752865185098,0.72,177.97,177.95,7.14116008]
[1752865185992,6.28924027,177.96,177.93,7.14116008]
[1752865186182,6.28924027,177.96,177.92,29.92]
[1752865186874,6.28924027,177.96,177.93,7.14116008]
[1752865187595,5.61892453,177.97,177.93,7.14116008]
[1752865187790,6.28892453,177.97,177.92,29.92]
[1752865188101,6.28892453,177.97,177.93,7.14116008]
[1752865188574,6.28892453,177.97,177.95,7.14116008]
[1752865188992,6.28892453,177.97,177.92,30.15]
[1752865189193,6.28892453,177.97,177.94,7.14116008]
[1752865189497,6.28892453,177.97,177.92,30.15]
[1752865189800,6.28892453,177.97,177.94,7.14116008]
[1752865189971,95.98892452,177.97,177.94,7.14116008]
[1752865190395,0.5,177.96,177.94,7.14116008]
[1752865191195,0.5,177.96,177.92,30.15]
[1752865191503,0.5,177.96,177.94,7.14116008]
[1752865192807,6.11941472,177.96,177.94,7.14116008]
[1752865193280,0.5,177.96,177.95,7.14116008]
[1752865193482,89.69999999,177.97,177.95,0.23]
[1752865193792,89.69999999,177.97,177.96,36.96116008]
[1752865193996,89.69999999,177.97,177.96,37.19116008]
[1752865195599,0.06,177.98,177.96,59.59508432]
[1752865195788,0.06,177.98,177.97,7.37116008]
[1752865195985,0.06,177.98,177.97,24.15584405]
[1752865196911,0.06,178.02,178.01,36.68466605]
[1752865197084,0.06,178.02,178.01,66.52466605]
[1752865197403,0.06,178.02,178.01,66.75466605]
[1752865199210,0.06,178.02,178.01,36.91466605]
[1752865199414,0.06,178.02,178.01,66.73466605]
[1752865200108,0.06,178.02,178.01,36.91466605]
[1752865200413,0.06,178.02,178.01,33.14116008]
[1752865200584,0.06,178.02,178.01,62.94116008]
[1752865200788,0.06,178.02,178.01,63.17116008]
[1752865201519,0.06,178.02,178.01,62.94116008]
[1752865203115,0.06,178.02,178.01,85.57350597]
[1752865203313,0.06,178.02,178.01,66.71466605]
[1752865203606,0.06,178.07,178.01,66.71466605]
[1752865203607,0.06,178.07,178.06,7.14116008]
[1752865203808,0.06,178.07,178.06,53.74584405]
[1752865204109,0.06,178.07,178.06,85.53192851]
[1752865204294,0.2,178.12,178.1,42.78468397]
[1752865204494,0.2,178.12,178.11,60.90700413]
[1752865204721,0.06,178.15,178.14,42.78468397]
[1752865205014,0.06,178.15,178.14,72.62468397]
[1752865205313,0.06,178.15,178.14,79.76584405]
[1752865206403,0.06,178.15,178.14,85.54940641]
[1752865206780,0.06,178.17,178.15,16.78468397]
[1752865206980,0.06,178.17,178.16,58.82301062]
[1752865207240,0.06,178.17,178.16,58.99301062]
[1752865207717,0.2,178.18,178.16,58.99301062]
[1752865207718,0.2,178.18,178.17,16.78468397]
[1752865207886,0.06,178.23,178.2,42.78468397]
[1752865208085,0.06,178.23,178.2,89.85338968]
[1752865208616,0.06,178.23,178.2,90.02338968]
[1752865208996,0.06,178.23,178.2,90.5845569]
[1752865209733,0.06,178.23,178.2,102.22159034]
[1752865210088,0.06,178.23,178.2,84.20171741]
[1752865210997,0.06,178.23,178.2,29.92]
[1752865210998,12.36703344,178.21,178.2,29.92]
[1752865211395,12.36703344,178.21,178.2,29.94]
[1752865211612,12.36703344,178.21,178.19,29.94]
[1752865211804,0.67,178.2,178.19,29.94]
[1752865212323,17.91870571,178.2,178.19,29.94]
[1752865212630,6.28167227,178.2,178.17,29.94]
[1752865212828,11.63703344,178.18,178.17,29.94]
[1752865213130,12.30703344,178.18,178.17,29.94]
[1752865214302,17.9193356,178.18,178.17,29.94]
[1752865214706,17.9193356,178.18,178.14,73.50668333]
[1752865214928,11.63703344,178.15,178.14,73.50668333]
[1752865215226,12.30703344,178.15,178.14,72.78668333]
[1752865215401,12.30703344,178.15,178.09,26.0]
[1752865215599,11.63703344,178.12,178.1,29.92]
[1752865215801,12.32703344,178.12,178.1,29.92]
[1752865216200,11.63703344,178.13,178.1,29.92]
[1752865216401,5.6138775,178.13,178.1,29.92]
[1752865216928,0.69,178.12,178.1,29.92]
[1752865217104,0.69,178.11,178.1,29.92]
[1752865218024,5.6138775,178.13,178.1,29.92]
[1752865218213,5.6138775,178.13,178.1,41.55703344]
[1752865218426,5.61450788,178.11,178.1,29.92]
[1752865218639,6.30450788,178.11,178.1,29.92]
[1752865218831,0.69,178.11,178.1,29.92]
[1752865219030,17.25130618,178.12,178.1,29.92]
[1752865219339,0.69,178.11,178.1,29.92]
[1752865219641,5.61427274,178.12,178.1,29.92]
[1752865219944,17.94130618,178.12,178.1,29.92]
[1752865220151,0.69,178.11,178.1,29.92]
[1752865220362,6.30450788,178.11,178.1,29.92]
[1752865220514,6.30450788,178.11,178.08,29.94]
[1752865220825,12.32703344,178.1,178.08,29.94]
[1752865221033,0.69,178.09,178.08,29.94]
[1752865221842,12.32703344,178.09,178.06,29.96]
[1752865222026,11.96340788,178.11,178.06,29.96]
[1752865222027,12.32703344,178.08,178.06,29.96]
[1752865222220,0.69,178.07,178.06,29.96]
[1752865222644,6.30576907,178.07,178.06,29.96]
[1752865223731,17.25280251,178.07,178.02,26.0]
[1752865223936,12.32703344,178.06,178.03,29.98]
[1752865224153,0.69,178.05,178.03,29.98]
[1752865224350,6.3489,178.11,178.03,29.98]
[1752865224651,11.9634652,178.11,178.05,16.78468397]
[1752865224821,12.6534652,178.11,178.07,11.63703344]
[1752865225028,0.69,178.1,178.07,11.63703344]
[1752865225335,0.69,178.09,178.06,29.98]
[1752865225538,0.69,178.08,178.06,29.98]
[1752865225757,0.69,178.1,178.07,11.63703344]
[1752865226551,5.61545372,178.08,178.06,29.98]
[1752865226921,6.30519606,178.09,178.06,41.61703344]
[1752865227138,5.61519606,178.09,178.07,11.63703344]
[1752865227338,12.65346119,178.11,178.07,11.63703344]
[1752865227538,6.30392123,178.13,178.1,11.63703344]
[1752865227740,5.61392123,178.13,178.11,11.63703344]
[1752865227952,6.30392123,178.13,178.1,30.04]
[1752865228162,6.30392123,178.13,178.11,11.63703344]
[1752865228652,5.61365715,178.14,178.11,11.63703344]
[1752865228961,5.61365715,178.14,178.12,11.63703344]
[1752865229259,0.69,178.13,178.11,11.63703344]
[1752865229430,0.69,178.13,178.1,30.04]
[1752865229631,0.69,178.12,178.1,30.04]
[1752865229849,11.63703344,178.13,178.1,30.04]
[1752865230028,0.69,178.11,178.08,41.69703344]
[1752865230239,0.69,178.1,178.08,30.06]
[1752865230552,0.69,178.09,178.08,30.06]
[1752865230738,6.30513841,178.09,178.07,0.03]
[1752865230923,0.69,178.08,178.07,0.03]
[1752865231343,12.32703344,178.08,178.07,0.03]
[1752865232655,5.61513841,178.09,178.07,0.03]
[1752865232861,5.61450788,178.11,178.07,11.66703344]
[1752865233164,6.30450788,178.11,178.07,41.70703344]
[1752865233458,12.32703344,178.1,178.07,30.07]
[1752865233657,0.69,178.1,178.07,30.07]
[1752865233862,5.61450788,178.11,178.08,11.63703344]
[1752865234029,5.61450788,178.11,178.09,11.63703344]
[1752865234234,0.69,178.12,178.07,30.77]
[1752865234235,5.61356236,178.14,178.1,11.63703344]
[1752865234460,6.30333843,178.15,178.13,11.63703344]
[1752865234630,5.61293219,178.16,178.13,11.63703344]
[1752865234826,5.61293219,178.16,178.14,11.63703344]
[1752865235056,6.30293219,178.16,178.13,11.63703344]
[1752865238459,5.61293219,178.16,178.14,11.63703344]
[1752865238666,5.61261716,178.17,178.15,11.63703344]
[1752865238962,0.06,178.18,178.16,12.33703344]
[1752865239147,0.06,178.18,178.17,41.67703344]
[1752865239350,0.06,178.18,178.17,42.37703344]
[1752865239732,0.06,178.18,178.17,59.16171741]
[1752865240538,0.06,178.18,178.17,64.77433457]
[1752865242438,0.06,178.18,178.17,34.73433457]
[1752865242638,0.06,178.18,178.17,64.75433457]
[1752865243267,0.06,178.18,178.17,59.14171741]
[1752865243432,0.06,178.18,178.17,47.50468397]
[1752865243644,0.06,178.18,178.17,59.14171741]
[1752865244169,0.06,178.18,178.17,58.44171741]
[1752865244340,0.06,178.18,178.17,59.14171741]
[1752865244735,0.06,178.18,178.17,64.75433457]
[1752865246361,0.06,178.18,178.17,17.48468397]
[1752865246663,0.06,178.18,178.17,41.65703344]
[1752865246966,0.06,178.18,178.17,30.02]
[1752865247341,0.06,178.18,178.17,41.65703344]
[1752865248077,0.72,178.18,178.17,30.02]
[1752865248356,0.72,178.18,178.12,28.42171741]
[1752865248357,12.35703344,178.18,178.12,28.42171741]
[1752865248531,11.63703344,178.16,178.13,30.02]
[1752865248740,5.61324726,178.15,178.13,30.02]
[1752865249337,5.61268095,178.17,178.14,11.63703344]
[1752865249564,5.61268095,178.17,178.15,30.0]
[1752865250643,0.66,178.16,178.15,30.0]
[1752865250963,12.29703344,178.16,178.15,30.0]
[1752865251462,12.29703344,178.16,178.11,26.0]
[1752865251653,11.63703344,178.13,178.12,29.98]
[1752865251835,12.29703344,178.13,178.12,29.98]
[1752865252560,11.63703344,178.15,178.12,29.98]
[1752865252757,6.27356236,178.14,178.12,29.98]
[1752865254154,0.66,178.13,178.12,29.98]
[1752865254744,17.91091094,178.13,178.12,29.98]
[1752865254958,17.91091094,178.13,178.11,29.94]
[1752865255165,0.66,178.12,178.11,29.94]
[1752865255680,12.29703344,178.12,178.1,0.03]
[1752865255877,11.63703344,178.11,178.1,0.03]
[1752865256067,12.29703344,178.11,178.1,0.03]
[1752865256977,17.91154132,178.11,178.1,0.03]
[1752865260694,5.61450788,178.11,178.1,0.03]
[1752865260866,89.69999999,178.1,178.07,0.03]
[1752865261058,11.63703344,178.08,178.07,0.03]
[1752865261453,12.29703344,178.08,178.07,0.03]
[1752865261671,0.66,178.08,178.07,0.03]
[1752865261881,17.91248716,178.08,178.07,0.03]
[1752865262384,18.41248716,178.08,178.07,0.03]
[1752865262682,17.91248716,178.08,178.07,0.03]
[1752865263058,11.63703344,178.09,178.07,0.03]
[1752865263258,101.512283,178.1,178.07,11.66703344]
[1752865263481,101.512283,178.1,178.07,41.52703344]
[1752865263681,0.66,178.09,178.07,29.89]
[1752865263872,0.66,178.08,178.07,29.89]
[1752865264092,106.95191644,178.1,178.07,29.89]
[1752865264265,5.61453685,178.11,178.08,11.63703344]
[1752865264590,5.61394676,178.13,178.1,11.63703344]
[1752865264769,5.61394676,178.13,178.1,41.49703344]
[1752865265672,11.63703344,178.11,178.07,0.03]
[1752865265861,11.63703344,178.08,178.07,0.03]
[1752865266294,12.29703344,178.08,178.07,0.03]
[1752865267061,17.91248716,178.08,178.07,0.03]
[1752865268185,1.6313,178.07,178.06,0.03]
[1752865268486,13.92833344,178.07,178.06,0.03]
[1752865268679,13.26833344,178.07,178.06,0.03]
[1752865268881,13.92833344,178.07,178.06,0.03]
[1752865269071,19.54410251,178.07,178.06,0.03]
[1752865269269,6.27576907,178.07,178.06,0.03]
[1752865269472,5.61576907,178.07,178.06,0.03]
[1752865270490,6.27576907,178.07,178.06,0.03]
[1752865270912,17.91280251,178.07,178.06,0.03]
[1752865272388,18.41280251,178.07,178.06,1e-08]
[1752865273217,18.41280251,178.07,177.99,0.03]
[1752865273218,27.5585,178.03,177.99,0.03]
[1752865273398,11.63703344,178.0,177.99,0.03]
[1752865273799,12.29703344,178.0,177.99,0.03]
[1752865274491,17.91501096,178.0,177.99,0.03]
[1752865276085,34.69969493,178.0,177.98,0.03]
[1752865276319,12.35703344,177.99,177.92,0.1]
[1752865276511,11.63703344,177.94,177.92,0.1]
[1752865276815,5.62016923,177.94,177.92,0.1]
[1752865276995,17.25720267,177.94,177.92,0.1]
[1752865277926,17.97720267,177.94,177.92,0.1]
[1752865279805,12.35703344,177.93,177.92,0.1]
[1752865280205,0.72,177.93,177.92,0.1]
[1752865280389,12.35703344,177.93,177.92,0.1]
[1752865280799,17.97722115,177.93,177.92,0.1]
[1752865281699,89.69999999,177.95,177.92,12.40703344]
[1752865281901,89.69999999,177.95,177.94,11.63703344]
[1752865282108,89.69999999,177.95,177.94,12.30703344]
[1752865282625,89.69999999,177.95,177.94,42.18703344]
[1752865283512,89.69999999,177.95,177.94,29.88]
[1752865283703,107.67658948,177.95,177.94,29.88]
[1752865283892,107.67658948,177.95,177.92,0.1]
[1752865284094,11.63703344,177.93,177.92,0.1]
[1752865284514,0.72,177.93,177.92,0.1]
[1752865284723,12.35703344,177.93,177.92,0.1]
[1752865284898,17.97722115,177.93,177.92,0.1]
[1752865288738,6.34018771,177.93,177.92,0.1]
[1752865288899,11.63703344,177.93,177.92,0.1]
[1752865289231,95.31957866,177.95,177.92,0.1]
[1752865289432,95.31957866,177.95,177.92,12.40703344]
[1752865289433,89.69999999,177.95,177.92,12.40703344]
[1752865289739,89.69999999,177.95,177.94,11.63703344]
[1752865290031,89.69999999,177.95,177.94,12.30703344]
[1752865290333,89.69999999,177.95,177.94,11.63703344]
[1752865290528,89.69999999,177.95,177.93,29.86]
[1752865290748,107.67674074,177.95,177.92,0.1]
[1752865290903,17.25722115,177.93,177.92,0.1]
[1752865291311,17.97722115,177.93,177.92,0.1]
[1752865292113,17.97722115,177.93,177.88,0.1]
[1752865292114,89.69999999,177.92,177.88,0.1]
[1752865292327,11.63703344,177.89,177.88,0.1]
[1752865292915,12.35703344,177.89,177.88,0.1]
[1752865293237,17.97848489,177.89,177.88,0.1]
[1752865294026,5.62145145,177.89,177.88,0.1]
[1752865294219,17.25848489,177.89,177.88,0.1]
[1752865294423,11.63703344,177.9,177.88,0.1]
[1752865294722,12.35703344,177.89,177.88,0.1]
[1752865294927,0.72,177.89,177.88,0.1]
[1752865295130,12.35703344,177.89,177.88,0.1]
[1752865295334,17.97848489,177.89,177.88,0.1]
[1752865296624,17.97848489,177.89,177.86,0.03]
[1752865296825,0.72,177.88,177.86,0.03]
[1752865297012,11.63703344,177.87,177.86,0.03]
[1752865297373,11.63703344,177.88,177.86,0.03]
[1752865297745,5.62145145,177.89,177.86,0.03]
[1752865298034,17.25848489,177.89,177.86,0.03]
[1752865298240,5.62145145,177.89,177.86,0.03]
[1752865299240,26.0,177.91,177.86,0.7]
[1752865299241,5.62081951,177.91,177.86,0.7]
[1752865299422,6.34081951,177.91,177.86,11.66703344]
[1752865299717,17.97785295,177.91,177.86,11.66703344]
[1752865299910,17.97785295,177.91,177.86,0.03]
[1752865300113,17.97785295,177.91,177.86,11.66703344]
[1752865300312,0.72,177.9,177.86,11.66703344]
[1752865300545,5.62081951,177.91,177.87,11.63703344]
[1752865300717,17.97785295,177.91,177.86,11.66703344]
[1752865300915,5.62081951,177.91,177.87,12.30703344]
[1752865301142,5.62081951,177.91,177.88,0.67]
[1752865301450,5.62046177,177.93,177.89,12.30703344]
[1752865301623,5.62046177,177.93,177.9,12.30703344]
[1752865302435,5.61987186,177.94,177.9,12.30703344]
[1752865302826,5.61987186,177.94,177.87,16.78468397]
[1752865303025,11.63703344,177.92,177.88,11.63703344]
[1752865303648,12.35703344,177.92,177.86,30.74]
[1752865303946,12.35703344,177.92,177.88,11.63703344]
[1752865304147,0.72,177.92,177.87,11.63703344]
[1752865304328,12.35703344,177.92,177.87,11.63703344]
[1752865305362,107.67785294,177.91,177.86,30.07]
[1752865305582,96.0408195,177.91,177.88,11.63703344]
[1752865305854,95.3208195,177.91,177.89,11.63703344]
[1752865306055,89.69999999,177.91,177.89,11.63703344]
[1752865306357,89.69999999,177.91,177.88,11.63703344]
[1752865306559,12.29703344,177.9,177.86,0.03]
[1752865307331,17.91845457,177.9,177.86,0.03]
[1752865307754,11.63703344,177.89,177.86,0.03]
[1752865308055,11.63703344,177.87,177.86,0.03]
[1752865308429,12.29703344,177.87,177.86,0.03]
[1752865309258,6.28208354,177.87,177.86,0.03]
[1752865309463,17.91911698,177.87,177.86,0.03]
[1752865309964,17.91911698,177.87,177.86,1e-08]
[1752865312407,26.0,177.84,177.69,2.2428]
[1752865312566,26.0,177.81,177.71,0.65]
[1752865312728,0.66,177.83,177.71,0.65]
[1752865313067,0.66,177.83,177.76,11.63703344]
[1752865313068,11.63703344,177.81,177.76,11.63703344]
[1752865313263,0.66,177.83,177.77,0.65]
[1752865313567,5.62366437,177.82,177.78,11.63703344]
[1752865313764,17.26069781,177.82,177.77,0.65]
[1752865313944,11.63703344,177.81,177.76,16.78468397]
[1752865314146,11.63703344,177.79,177.74,16.78468397]
[1752865314471,0.66,177.78,177.73,0.65]
[1752865314650,12.29703344,177.78,177.73,12.28703344]
[1752865314847,12.29703344,177.78,177.73,0.65]
[1752865315063,11.63703344,177.77,177.72,31.56]
[1752865315234,6.3807,177.81,177.68,12.28703344]
[1752865315235,11.63703344,177.74,177.68,12.28703344]
[1752865315563,11.63703344,177.73,177.68,12.28703344]
[1752865315863,12.29703344,177.75,177.7,11.63703344]
[1752865316049,17.92292244,177.75,177.7,11.63703344]
[1752865316254,17.92292244,177.75,177.7,0.65]
[1752865316460,8.4665815,177.76,177.71,12.28703344]
[1752865316660,17.2622437,177.78,177.73,11.63703344]
[1752865316858,12.29703344,177.79,177.74,11.63703344]
[1752865317050,17.92183696,177.79,177.74,11.63703344]
[1752865317251,11.63703344,177.78,177.73,12.28703344]
[1752865317563,17.9222296,177.78,177.7,17.43468397]
[1752865317770,17.9222296,177.78,177.73,11.63703344]
[1752865317941,17.2622296,177.78,177.73,11.63703344]
[1752865318147,12.29703344,177.77,177.72,11.63703344]
[1752865318457,17.92232318,177.77,177.72,11.63703344]
[1752865318775,0.66,177.8,177.73,0.65]
[1752865319087,31.58,177.84,177.79,11.63703344]
[1752865319088,0.66,177.83,177.79,11.63703344]
[1752865319246,6.28337556,177.83,177.79,11.63703344]
[1752865319670,2.87411908,177.84,177.79,11.63703344]
[1752865319844,0.66,177.83,177.77,0.65]
[1752865320044,0.66,177.83,177.79,11.63703344]
[1752865320464,6.28351022,177.83,177.79,11.63703344]
[1752865320666,5.62351022,177.83,177.79,11.63703344]
[1752865320892,5.62351022,177.83,177.73,18.37888397]
[1752865320893,11.63703344,177.81,177.75,26.0]
[1752865321044,11.63703344,177.78,177.71,32.23]
[1752865321257,0.66,177.77,177.69,16.78468397]
[1752865321453,11.63703344,177.74,177.69,11.63703344]
[1752865321751,11.63703344,177.75,177.7,37.63703344]
[1752865321952,11.63703344,177.75,177.7,26.65]
[1752865322157,12.29703344,177.74,177.68,2.1701]
[1752865322372,12.29703344,177.74,177.66,11.63703344]
[1752865322373,11.63703344,177.71,177.66,11.63703344]
[1752865322547,5.62746201,177.7,177.66,12.28703344]
[1752865322955,5.62746201,177.7,177.64,33.1277]
[1752865322956,5.62682871,177.72,177.68,11.63703344]
[1752865323244,5.62682871,177.72,177.68,0.65]
[1752865323452,5.62682871,177.72,177.68,12.28703344]
[1752865323664,5.62682871,177.72,177.68,0.65]
[1752865323867,5.62682871,177.72,177.68,12.28703344]
[1752865324064,5.62682871,177.72,177.68,11.63703344]
[1752865324476,20.35222306,177.74,177.68,11.63703344]
[1752865324656,11.63703344,177.72,177.68,11.63703344]
[1752865324853,11.63703344,177.73,177.68,12.28703344]
[1752865325067,11.63703344,177.72,177.67,11.63703344]
[1752865325263,11.63703344,177.72,177.64,59.1277]
[1752865325467,11.63703344,177.72,177.67,12.28703344]
[1752865325671,0.66,177.73,177.67,12.28703344]
[1752865325867,11.63703344,177.72,177.67,12.28703344]
[1752865326075,0.66,177.73,177.68,0.65]
[1752865326273,19.69222306,177.74,177.64,59.1277]
[1752865326465,11.63703344,177.69,177.64,69.23703344]
[1752865326663,12.29703344,177.69,177.64,69.23703344]
[1752865326878,11.63703344,177.68,177.64,31.6]
[1752865327089,19.69611704,177.7,177.64,31.6]
[1752865327266,11.63703344,177.68,177.64,31.6]
[1752865327666,20.35611704,177.7,177.64,31.6]
[1752865327879,11.63703344,177.69,177.64,43.23703344]
[1752865328265,11.63703344,177.69,177.65,11.63703344]
[1752865328664,5.62809545,177.68,177.65,11.63703344]
[1752865328858,95.3265388,177.73,177.67,11.63703344]
[1752865329092,95.3265388,177.73,177.68,0.65]
[1752865329274,12.29703344,177.72,177.68,11.63703344]
[1752865329667,89.69999999,177.73,177.71,11.63703344]
[1752865329887,17.26259599,177.76,177.71,12.28703344]
[1752865330187,17.92259599,177.76,177.71,12.28703344]
[1752865330566,12.29703344,177.75,177.7,11.63703344]
[1752865330775,5.62651212,177.73,177.69,43.39703344]
[1752865330980,6.28651212,177.73,177.69,43.39703344]
[1752865331594,17.92354556,177.73,177.69,31.76]
[1752865333096,17.92354556,177.73,177.69,43.39703344]
[1752865333277,6.28651212,177.73,177.69,43.39703344]
[1752865333476,5.62651212,177.73,177.69,44.04703344]
[1752865333982,5.62651212,177.73,177.7,11.63703344]
[1752865334588,5.62651212,177.73,177.67,32.31]
[1752865334795,5.62651212,177.73,177.69,11.63703344]
[1752865335164,6.28651212,177.73,177.69,11.63703344]
[1752865335569,0.66,177.72,177.69,11.63703344]
[1752865335798,0.66,177.72,177.67,31.66]
[1752865336008,0.66,177.71,177.67,11.63703344]
[1752865336381,12.29703344,177.71,177.66,43.23703344]
[1752865336587,11.63703344,177.72,177.67,11.63703344]
[1752865336785,12.29703344,177.72,177.67,12.30703344]
[1752865336983,12.29703344,177.72,177.69,0.03]
[1752865337410,5.62714534,177.71,177.69,0.03]
[1752865337781,6.28714534,177.71,177.69,0.03]
[1752865338291,5.62714534,177.71,177.69,0.03]
[1752865338600,89.69999999,177.74,177.7,12.30703344]
[1752865339016,5.62619556,177.74,177.69,0.03]
[1752865339181,0.66,177.73,177.69,11.66703344]
[1752865339508,5.6268063,177.73,177.69,11.66703344]
[1752865339683,5.6268063,177.73,177.69,12.33703344]
[1752865339882,6.2868063,177.73,177.69,11.66703344]